Cogmind - Beta 10.2 @@@ ROGUE MODE // 2021.09.29 @ 00:03:30 Player: Matie Bal Result: Destroyed by G-34 Mercenary with Small Laser Performance ------------- Evolutions (0) 0 Regions Visited (1) 200 Robots Destroyed (13) 65 Value Destroyed (278) 278 Prototype IDs (0) 0 Alien Tech Used (0) 0 Bonus (0) 0 TOTAL SCORE: 543 Bonus ------- None Cogmind --------- Core Integrity 0/250 Matter 300/300 Energy 123/125 System Corruption 0% Temperature Cool (6) Movement Rolling (90) Ox1 Location -10/Materials Parts ------- > --- POWER (1) -------- Light Ion Engine > --- PROPULSION (2) --- Wheel Wheel > --- UTILITY (2) ------ Small Storage Unit High-capacity Storage Unit > --- WEAPON (2) ------- (None) > --- INVENTORY (14) --- Light Treads Wheel Hover Unit Hover Unit Heat Sink High-capacity Storage Unit Structural Scanner ECM Suite Hacking Suite Datajack Peak State ------------ > --- POWER ------------ Ion Engine > --- PROPULSION ------- Light Treads Wheel > --- UTILITY ---------- Small Storage Unit Small Storage Unit > --- WEAPON ----------- EM Pulse Gun Medium Laser > --- INVENTORY -------- Light Ion Engine Light Treads Hover Unit Hover Unit Targeting Computer Hacking Suite Medium Laser Datajack [Rating: 8] Favorites ----------- Power Ion Engine Engine Ion Engine Propulsion Wheel Treads Light Treads Leg Aluminum Leg Wheel Wheel Utility Small Storage Unit Storage Small Storage Unit Weapon EM Pulse Gun Energy Gun EM Pulse Gun Special Weapon Welding Torch Special Melee Weapon Datajack Build | -11 -10 ------- Run | Scr Mat Slots Evolved . | . . Power . | . . Propulsion . | . . Utility . | . . Weapon . | . . Parts Attached 28 | 3 25 Power 5 | . 5 Engine 5 | . 5 Core . | . . Reactor . | . . Propulsion 12 | 2 10 Treads 4 | 1 3 Leg . | . . Wheel 8 | 1 7 Hover . | . . Flight . | . . Utility 4 | 1 3 Device . | . . Storage 4 | 1 3 Processor . | . . Hackware . | . . Protection . | . . Artifact . | . . Weapon 7 | . 7 Energy Gun 5 | . 5 Energy Cannon . | . . Ballistic Gun . | . . Ballistic Cannon . | . . Launcher . | . . Special Weapon 1 | . 1 Impact Weapon . | . . Slashing Weapon . | . . Piercing Weapon . | . . Special Melee Weapon 1 | . 1 Unidentified Prototypes . | . . Parts Lost 10 | . 10 Power 2 | . 2 Propulsion 3 | . 3 Utility . | . . Weapon 5 | . 5 Highest Loss Streak 6 | . 6 Average Slot Usage (%) 90 | . 90 Engine 13 | . 13 Treads 11 | . 11 Wheel 15 | . 15 Storage 28 | . 28 Energy Gun 15 | . 15 Special Weapon 2 | . 2 Special Melee Weapon 2 | . 2 Naked Turns . | . . Heaviest Build 45 | 17 45 Greatest Support 40 | 20 40 Greatest Overweight (x) 13 | 1 13 Average Overweight (x) 1 | . 1 Largest Inventory Capacity 20 | 8 20 Average Capacity 12 | 6 12 Most Carried 12 | 6 12 Average Carried 9 | 6 9 Final Capacity 14 | 8 14 Final Carried 10 | 6 10 Class Distribution -------------------- 95% | Mutant 4% | Scavenger-Mutant Dominant Class ---------------- Mutant | -10/Materials Resources | -11 -10 ----------- Run | Scr Mat Matter Collected 414 | 230 184 Remotely . | . . Salvage Created 595 | 78 517 Parts 26 | 1 25 Haulers Intercepted . | . . Recyclers Shooed 1 | . 1 Parts Field Recycled . | . . Retrieved Matter . | . . Parts Self-Destructed . | . . Prevented . | . . Kills | -11 -10 ------- Run | Scr Mat Combat Hostiles Destroyed 7 | . 7 Melee 1 | . 1 Guns 4 | . 4 Cannons 1 | . 1 AOE 1 | . 1 Classes Destroyed 5 | 1 4 Worker 1 | . 1 Builder 1 | . 1 Recycler 3 | 1 2 Operator 1 | . 1 Grunt 7 | . 7 Best Kill Streak 3 | 1 3 Combat Bots Only 2 | . 2 Max Kills in Single Turn 1 | 1 1 Gunslinging . | . . Exploded 1 | . 1 Melee 1 | . 1 Uniques/NPCs Destroyed . | . . Combat | -11 -10 -------- Run | Scr Mat Damage Taken 1064 | . 1064 Core 257 | . 257 Absorbed by Shields . | . . Core Remaining (%) 100 | 100 . Volleys Fired 77 | 3 74 Largest 2 | 1 2 Hottest 90 | 40 90 Shots Fired 91 | 3 88 Gun 67 | 3 64 Cannon . | . . Launcher . | . . Special 24 | . 24 Kinetic . | . . Thermal 74 | . 74 Explosive . | . . Electromagnetic 17 | 3 14 Robot Hit Streak 10 | 3 10 Robot Miss Streak 4 | . 4 Penetration Max . | . . Secondary Targets . | . . Shots Hit Robots 64 | 3 61 Core Hits 29 | 2 27 Critical Hits . | . . Critical Kills . | . . Critical Parts Destroyed . | . . Melee Attacks . | . . Impact . | . . Slashing . | . . Piercing . | . . Sneak Attacks . | . . Combat Hostiles . | . . Follow-up Attacks . | . . Damage Inflicted 729 | 39 690 Guns 601 | 39 562 Cannons . | . . Explosions 46 | . 46 Melee . | . . Ramming 29 | . 29 Kinetic . | . . Thermal 542 | . 542 Explosive . | . . Electromagnetic 158 | 39 119 Impact . | . . Slashing . | . . Piercing . | . . Highest Corruption . | . . Average Corruption . | . . Corruption Purged . | . . Overload Shots . | . . Overflow Damage . | . . Projectiles . | . . Explosions . | . . Melee . | . . Knockbacks . | . . Impact . | . . Kinetic . | . . Secondary . | . . Self-Inflicted Damage . | . . Shots . | . . Rammed 12 | . 12 Targets Rammed 12 | . 12 Kicked . | . . Crushed . | . . Highest Temperature 200 | . 200 Average Temperature 63 | . 63 Received Heat Transfer 462 | . 462 Siege Activations . | . . Robots Corrupted . | . . Combat Hostiles . | . . Parts Fried . | . . Impact Corruptions . | . . Robots Melted . | . . Combat Hostiles . | . . Parts Melted 1 | . 1 Heat Transferred 1617 | . 1617 Parts Sabotaged . | . . Parts Stolen . | . . Parts Stripped . | . . Power Chain Reactions 1 | . 1 Missiles Intercepted . | . . Alert | -11 -10 ------- Run | Scr Mat Peak Influence 180 | 5 180 Initial 3 | . 3 Average 67 | 3 69 Maximum Alert Level . | . . Low Security (%) 100 | 100 100 Level 1 . | . . Level 2 . | . . Level 3 . | . . Level 4 . | . . Level 5 . | . . High Security . | . . Max Security . | . . Squads Dispatched 5 | . 5 Investigation 2 | . 2 Extermination . | . . Reinforcement 3 | . 3 Assault . | . . Garrison . | . . Intercept . | . . Construction Impeded . | . . Haulers Reinforced . | . . Stealth | -11 -10 --------- Run | Scr Mat Distress Signals 2 | . 2 Communications Jammed . | . . Distress Signals . | . . Times Spotted 22 | . 22 Peak Tracking Total 8 | . 8 Tactical Retreats 3 | . 3 Traps | -11 -10 ------- Run | Scr Mat Traps Triggered 5 | . 5 Indirectly . | . . Trap Hack Attempts 10 | . 10 Triggered . | . . Disarmed 1 | . 1 Reprogrammed . | . . Reused . | . . Traps Extracted . | . . Installed . | . . Triggered . | . . Machines | -11 -10 ---------- Run | Scr Mat Machines Disabled . | . . Max in Single Turn . | . . Machines Sabotaged . | . . Garrisons Compromised . | . . Overloaded Fab Kills . | . . Fab Network Shutdowns . | . . Hacking | -11 -10 --------- Run | Scr Mat Machines Accessed 1 | . 1 Terminals 1 | . 1 Fabricators . | . . Repair Stations . | . . Recycling Units . | . . Scanalyzers . | . . Garrison Access . | . . Total Hacks 5 | . 5 Successful 3 | . 3 Failed 2 | . 2 Catastrophic . | . . Database Lockouts . | . . Manual 5 | . 5 Terminals 5 | . 5 Fabricators . | . . Repair Stations . | . . Recycling Units . | . . Scanalyzers . | . . Garrison Access . | . . Terminal Hacks 1 | . 1 Terminal Index 1 | . 1 Fabricator Hacks . | . . Repair Station Hacks . | . . Recycling Unit Hacks . | . . Scanalyzer . | . . Garrison Access Hacks . | . . Unauthorized Hacks 2 | . 2 Terminals 2 | . 2 Botnet 1 | . 1 Operators 1 | . 1 Fabricators . | . . Repair Stations . | . . Recycling Units . | . . Scanalyzers . | . . Garrison Access . | . . Data Cores Recovered . | . . Used . | . . Hacking Detections 1 | . 1 Full Trace Events . | . . Feedback Events . | . . Feedback Blocked . | . . Robot Schematics Acquired . | . . Robots Built . | . . Matter . | . . Time . | . . Total Robot Build Rating . | . . Part Schematics Acquired . | . . Parts Built . | . . Matter . | . . Time . | . . Total Part Build Rating . | . . Parts Repaired . | . . Time . | . . Parts Recycled . | . . Recycled Matter . | . . Retrieved Matter . | . . Retrieved Components . | . . Parts Scanalyzed . | . . Part Schematics Acquired . | . . Parts Damaged . | . . Bothacking | -11 -10 ------------ Run | Scr Mat Used RIF Installer . | . . Robots Hacked . | . . Non-combat . | . . Combat . | . . Robot Hacks Applied . | . . Relay Couplers Released . | . . Robots Rewired . | . . Allies Hacked . | . . Hacks Repelled . | . . Allies | -11 -10 -------- Run | Scr Mat Total Allies . | . . Largest Group . | . . Highest-Rated Group . | . . Highest-Rated Ally . | . . Total Orders . | . . Ally Attacks . | . . Total Damage . | . . Kills . | . . Allies Corrupted . | . . Allies Melted . | . . Intel | -11 -10 ------- Run | Scr Mat Robot Analysis Total . | . . Derelict Logs Recovered . | . . Drone Launches . | . . Drone Recoveries . | . . Exploration | -11 -10 ------------- Run | Scr Mat Turns Passed 730 | 32 698 Spaces Moved 369 | 14 355 Core 1 | . 1 Treads 70 | 13 57 Legs . | . . Wheels 298 | 1 297 Hover . | . . Flight . | . . Fastest Speed 90 | 90 90 Average Speed 110 | 155 108 Slowest Speed 700 | 160 700 Overloaded Moves . | . . Propulsion Burnouts . | . . Robots Hopped . | . . Cave-ins Triggered . | . . Exploration Rate (%) 21 | 2 40 Regions Visited 1 Branch Regions . Pre-discovered Areas . | . . Known Exits Taken . | . . Unknown Exits Taken 1 | 1 . Scrap Searched . | . . Spaces Dug . | . . Terrain Destroyed 3 | . 3 Melee . | . . Projectile . | . . AOE 3 | . 3 Terrain Rammed . | . . Walls Destroyed . | . . Machines Disabled . | . . Actions | -11 -10 --------- Run | Scr Mat Total 579 | 19 560 Wait 60 | . 60 Move 368 | 13 355 Hop . | . . Pick Up 16 | . 16 Fast Attach 10 | 1 9 Attach 6 | . 6 Detach . | . . Swap 12 | 2 10 Drop 8 | . 8 Fire 77 | 3 74 Melee . | . . Ram . | . . Kick . | . . Crush 12 | . 12 Escape Stasis . | . . Rewire . | . . Trap 10 | . 10 Miscellaneous . | . . Route ------- -11/Scrapyard -10/Materials (discovered 1 exit: [*Mat]) History --------- Turn | Location | Event 10 | -11/Scrapyard | Discovered new exit (range 3) 33 | -11/Scrapyard | Entered Materials 311 | -10/Materials | Build established: Mutant 328 | -10/Materials | Discovered new exit (range 3) 445 | -10/Materials | Core integrity fell below 50% 473 | -10/Materials | Lost 6 parts (1p2n3w) 662 | -10/Materials | Core integrity fell below 20% 731 | -10/Materials | Destroyed by G-34 Mercenary with Small Laser Last Messages --------------- 00626_ Dropped Lgt. Ion Engine. 00626_ K-01 Serf collects debris. 00632_ Triggered Alarm Trap. 00632_ An alarm sounds. 00632_ ALERT: Alarm triggered, dispatching investigation squad. 00636_ K-01 Serf collects debris. 00669_ G-34 Mercenary heat short circuits Sml. Laser. 00674_ G-34 Mercenary destroyed. 00681_ Lgt. Treads destroyed. 00685_ Ion Engine destroyed. 00690_ G-34 Mercenary destroyed. 00693_ Acquired 10 matter. 00695_ K-01 Serf collects debris. 00708_ U-05 Engineer lays Concrete. 00715_ R-06 Scavenger collects Lgt. Ion Engine. 00718_ R-06 Scavenger collects Wheel. 00723_ Acquired Lgt. Treads. 00723_ R-06 Scavenger collects Heat Sink. 00723_ ALERT: Hostiles spotted, dispatching reinforcements to Terminal M001. 00726_ Sml. Laser destroyed. Map ----- +----------------------------------------------------+ | | | | | | | | | | | | | | | | | | | | | | | | | | | | | ?????######??????????????????????????????????????? | | ????# ?????????????????????????????????????? | | ????# ! """????????????????????????????????????? | | ????# """#????###?##?????????????????????????? | | ????# """#??### ## ####??????????????????????? | | ????# ####### # #??????????????????????? | | ????# """# ######?????????????????????? | | ????# """# # #?????????????????????? | | ????# """# # < ##?????????????????????? | | ?????? ??# # #??????????????????????? | | ??????##+##### + g ########???????????????? | | ??????# + # @# !!!#???????????????? | | ??##### #### # #"" !!!#???????????????? | | ??+ #??# #k #"T !! #???????????????? | | ??##### #??# #o #"" #???????????????? | | ??????# #??## ## # ###########?????? | | ??????# ############# # %%= # #?????? | | ??????# g ss###+#### #?????? | | ??????# ############# s *= # / !#?????? | | ??????# #???????????# !== + """ // #?????? | | ?????## ^ ##??????????# ! %% # """ / #?????? | | ##### #####??????######## # """ #?????? | | # #?????????????# # #?????? | | #?????????????# # #?????? | | # #?????????????# ###########?????? | | ##### #####?????????????# #???????????????? | | ?????# ^ ###?????????????????# #???????????????? | | ?????# #???????????????????# #???????????????? | | ?????# #???????????????????# #???????????????? | | ????## ##??????????????????# #???????????????? | | ????# #??????????????????# #???????????????? | | ????# #??????????????????# #???????????????? | | ????# #??????????????????# #???????????????? | | ????# #??????????????????# +???????????????? | | ????# #??????????????????# #???????????????? | | ????## ##??????????????????# #???????????????? | +----------------------------------------------------+ Best States ------------- Heat Dissipation 25 Energy Generation 10 Energy Capacity 250 Matter Stores 300 Matter Capacity 300 Sight Range 16 Terrain Scan Density 10 Evasion (%) 42 Recoil Reduction 2 Item Schematics ----------------- None Robot Schematics ------------------ None Fabricated ------------ Nothing Alien Tech Used ----------------- None Achievements -------------- None Challenges ------------ None Game ------ Seed GhostPhasingClaws Manual? 0 Play Time 00:16:00 Cumulative 41.4 hours Start 2021.09.28 @ 23:51:11 End 2021.09.29 @ 00:03:30 Sessions 1 Manual Loads 0 Difficulty Rogue Special Mode None Game No. 24 Rogue 24 Adventurer 0 Explorer 0 Win Type - Total 2 Types 2/0/0/0/0/0/0/0/0 Lore% 32 Gallery% 40 Achievement% 37 Wizard Run 0 Options --------- ASCII 0 Keyboard 0 Movement Numpad Keybinds 0 Fullscreen 1 Font 24/Smallcaps Map View 113x50 Tactical HUD 1 Map Filters NONE Filters NONE Steam 1 RUN: 26048ae1-21d0-44c9-8a9a-3d546ad8a93b